fUST/lending_fUST_20240629
["ID","MTS","AMOUNT","RATE_DAILY","PERIOD"]
[330585177,1719590406157,5000.0,0.00026,120]
[330585181,1719590846276,6971.08828511,0.00014998,2]
[330585182,1719590875026,3767.28917554,0.00014998,2]
[330585183,1719590883708,155.22069665,0.00014998,2]
[330585184,1719590887704,16226.59446054,0.00014998,2]
[330585185,1719590892862,155.14547188,0.00014998,2]
[330585186,1719590911850,497.0215416,0.00014999,2]
[330585187,1719590925709,183.28192683,0.00014998,2]
[330585188,1719590937086,154.85288975,0.00014998,2]
[330585189,1719590939174,436.49865584,0.00014999,2]
[330585193,1719590992695,14369.56865064,0.00014999,2]
[330585195,1719590994902,5000.0,0.00026,120]
[330585198,1719591018864,1163.49276178,0.00015,2]
[330585199,1719591026184,947.99354244,0.00015,2]
[330585200,1719591029086,155.04817485,0.00014999,2]
[330585408,1719591041511,-186.23483516,0.00016155,2]
[330585409,1719591041521,-3802.08807485,0.00016155,2]
[330585410,1719591041531,-300.0,0.00016254,2]
[330585411,1719591041540,-42201.76063344,0.00016255,2]
[330585412,1719591041550,-26069.57075142,0.00016255,2]
[330585413,1719591041559,-1118.32966201,0.00016255,2]
[330585414,1719591041568,-1567.90892425,0.00016255,2]
[330585415,1719591041577,-24900.0,0.0001711,2]
[330585416,1719591041586,-1541.6082983,0.0001731,2]
[330585417,1719591041595,-292.24990825,0.00017664,2]
[330585418,1719591041606,-1646.5119673,0.00017664,2]
[330585419,1719591041622,-939.51931975,0.00017664,2]
[330585420,1719591041633,-507.8250591,0.00017692,2]
[330585505,1719591046734,-613.23,0.00017692,2]
[330585508,1719591129183,516.65341742,0.00014999,2]
[330585511,1719591175205,325.51380041,0.00015,2]
[330585512,1719591184660,1313.011853,0.00014999,2]
[330585513,1719591192927,154.85288975,0.00014999,2]
[330585515,1719591206804,723.6137849,0.00014999,2]
[330585521,1719591269745,336.80405389,0.00014999,2]
[330585524,1719591278784,661.12832609,0.00014999,2]
[330585525,1719591283738,176.09888537,0.00014999,2]
[330585527,1719591318739,1638.03620933,0.00014999,2]
[330585534,1719591359066,233.05080539,0.00014999,2]
[330585544,1719591466438,1284.76673272,0.00014999,2]
[330585545,1719591482225,566.05938198,0.00014999,2]
[330585546,1719591487682,222.05313325,0.00014999,2]
[330585547,1719591500027,489.70357394,0.00014999,2]
[330585549,1719591537824,208.37564863,0.00014999,2]
[330585550,1719591544439,481.31478559,0.00014999,2]
[330585556,1719591660877,524.53687803,0.00014999,2]
[330585560,1719591677578,154.85288975,0.00014999,2]
[330585567,1719591702229,198.99823166,0.00014999,2]
[330585571,1719591738086,3922.9174901,0.00014999,2]
[330585576,1719591814028,282.93616103,0.00014999,2]
[330585577,1719591826553,155.13161103,0.00014999,2]
[330585579,1719591895232,181.58035626,0.00014999,2]
[330585586,1719591979195,207.76713087,0.00014999,2]
[330585587,1719592000849,255.26958221,0.00014999,2]
[330585590,1719592029038,1486.86287617,0.00014999,2]
[330585591,1719592107746,164.89715467,0.00014999,2]
[330585592,1719592133126,1284.76673272,0.00014999,2]
[330585594,1719592211235,154.85288975,0.00014999,2]
[330585707,1719592240911,-1418.14301958,0.00016155,2]
[330586397,1719592281251,164.68724385,0.00014999,2]
[330586398,1719592360120,919.59955313,0.00014999,2]
[330586399,1719592360582,10564.8320491,0.00014998,2]
[330586400,1719592374118,309.65937238,0.00014999,2]
[330586401,1719592421302,476.96301734,0.00014999,2]
[330586403,1719592559339,242.79486718,0.00014999,2]
[330586406,1719592620689,351.72,0.00010959,2]
[330586407,1719592631403,799.38,0.00010959,2]
[330586420,1719592677208,251.71857067,0.00014999,2]
[330586424,1719592709811,3923.79380923,0.00013283,2]
[330586427,1719592918613,208.7303948,0.00014999,2]
[330586428,1719592920990,656.2,0.00010959,2]
[330586429,1719592933023,546.84,0.00010959,2]
[330586430,1719592953848,696.21,0.00010959,2]
[330586431,1719592964371,263.71,0.00010959,2]
[330586432,1719592975140,219.76,0.00010959,2]
[330586433,1719592985654,183.13,0.00010959,2]
[330586434,1719592994364,16218.68524789,0.00013283,2]
[330586435,1719592996160,152.61,0.00010959,2]
[330586436,1719593013893,154.96676313,0.00013283,2]
[330586437,1719593017239,763.09,0.00010959,2]
[330586438,1719593047304,16218.68524789,0.00013283,2]
[330586439,1719593053088,188.94644421,0.00013283,2]
[330586440,1719593063814,155.08961822,0.00013283,2]
[330586442,1719593110490,455.7,0.00010959,2]
[330586443,1719593168371,154.97675349,0.00013283,2]
[330586490,1719593438074,-476.96301734,0.00015114,2]
[330586495,1719593438186,-2523.03698266,0.00015114,2]
[330586496,1719593438195,-3546.96301734,0.00015284,2]
[330586535,1719593443294,-10109.87563437,0.00015284,2]
[330586558,1719593447160,-606.7,0.00015284,2]
[330586563,1719593467352,166.666666,0.00014904,2]
[330586566,1719593589501,670.3646438,0.00014987,2]
[330586567,1719593601649,344.99037569,0.00014999,2]
[330586568,1719593684630,400.80848564,0.00014999,2]
[330586569,1719593793341,181.50970077,0.00014999,2]
[330586572,1719593926049,6765.2952856,0.0001488,2]
[330586573,1719593934050,24900.0,0.0001488,2]
[330586574,1719593975677,208.83961786,0.00014999,2]
[330586575,1719594031208,166.666666,0.00014904,2]
[330586577,1719594152319,5283.67863355,0.00014965,2]
[330586578,1719594166199,1487.60034683,0.00014999,2]
[330586579,1719594199924,735.26,0.00026,120]
[330586584,1719594291966,6974.47504509,0.00014998,2]
[330586588,1719594472099,3000.0,0.00014869,2]
[330586636,1719594634886,166.666666,0.00014904,2]
[330586637,1719594635358,273.37336231,9.9e-05,2]
[330586643,1719594638367,-1346.5,0.00015015,2]
[330586644,1719594638379,-3247.8551657,0.00015015,2]
[330586819,1719594644482,273.37336231,9.9e-05,2]
[330586844,1719594653168,1999.0,0.00026,120]
[330586845,1719594653223,273.37336231,9.9e-05,2]
[330586846,1719594678136,1118.02971172,0.00014999,2]
[330586847,1719594682640,179.583121,0.00012,2]
[330586848,1719594691845,293.07017019,0.00012,2]
[330586849,1719594699511,1593.05209417,0.00015,2]
[330586850,1719594702651,208.3392434,0.00012,2]
[330586851,1719594703295,282.93616103,0.00012,2]
[330586852,1719594713527,2237.29898741,0.00012,2]
[330586853,1719594716212,661.12832609,0.00012,2]
[330586854,1719594716248,195.52436264,0.00014545,2]
[330586855,1719594717759,3923.79380923,0.00014545,2]
[330586856,1719594718181,154.97675349,0.00014545,2]
[330586857,1719594718476,6971.08828511,0.00014545,2]
[330586858,1719594719056,947.4992689,0.00015,2]
[330586859,1719594720024,155.00852547,0.00014545,2]
[330586860,1719594720304,299.47574748,0.00014545,2]
[330586861,1719594721077,723.78639686,0.00014545,2]
[330586862,1719594721965,159.75544924,0.00012,2]
[330586863,1719594723512,164.81209326,0.00014545,2]
[330586864,1719594723884,567.15112247,0.00014545,2]
[330586865,1719594724027,155.02979525,0.00015,2]
[330586866,1719594724187,239.56788705,0.00014545,2]
[330586867,1719594724430,550.22191672,0.00012,2]
[330586868,1719594724823,218.37111107,0.00012,2]
[330586869,1719594725519,512.28712344,0.00014545,2]
[330586870,1719594725643,296.79848075,0.00014545,2]
[330586871,1719594725674,159.35965211,0.00014545,2]
[330586872,1719594726470,517.10415187,0.00012,2]
[330586873,1719594726735,1487.60034683,0.00014545,2]
[330586874,1719594727787,401.7459215,0.00014545,2]
[330586875,1719594727885,318.0694556,0.00014545,2]
[330586876,1719594728297,207.66347557,0.00014545,2]
[330586877,1719594728671,933.08575257,0.00014545,2]
[330586878,1719594730116,1569.01894779,0.00014545,2]
[330586879,1719594730910,154.9211832,0.00014545,2]
[330586880,1719594731222,706.22316216,0.00014545,2]
[330586881,1719594733095,2129.2320514,0.00014545,2]
[330586882,1719594733128,157.57380656,0.00014545,2]
[330586883,1719594733818,1284.76673272,0.00014545,2]
[330586884,1719594736963,165.37828662,0.00014545,2]
[330586885,1719594738236,208.7303948,0.00014545,2]
[330586886,1719594738924,1313.011853,0.00014545,2]
[330586887,1719594739525,1913.6932576,0.00014545,2]
[330586888,1719594739597,524.53687803,0.00014545,2]
[330586889,1719594743303,154.97675349,0.00014545,2]
[330586890,1719594744881,457.57827588,0.00014545,2]
[330586891,1719594747336,163.37644317,0.00014545,2]
[330586892,1719594756762,8922.04197618,0.00014998,2]
[330586893,1719594757526,431.1151401,0.00014718,2]
[330586894,1719594762728,286.45866748,0.00014999,2]
[330586895,1719594766581,208.3392434,0.00014545,2]
[330586896,1719594770688,2124.49069545,0.00014999,2]
[330586897,1719594770868,11121.90890306,0.00014998,2]
[330586898,1719594776421,516.78911209,0.00014545,2]
[330586900,1719594920701,425.99473681,0.00014999,2]
[330586901,1719594976018,250.0,0.00014867,2]
[330586902,1719594983031,259.39180364,0.00014999,2]
[330586903,1719595131879,5283.67863355,0.00014858,2]
[330586904,1719595154697,166.666666,0.00014904,2]
[330586906,1719595283251,167.4837934,0.00014934,2]
[330586908,1719595403542,666.0,0.00026,120]
[330586909,1719595420319,157.6,0.00026,120]
[330586910,1719595480698,239.56788705,0.00014999,2]
[330586911,1719595485969,306.48765772,0.00014999,2]
[330586912,1719595494029,947.4992689,0.00015,2]
[330586913,1719595500543,195.57704168,0.00014999,2]
[330586914,1719595563494,661.12832609,0.00014999,2]
[330586915,1719595618509,5283.67863355,0.00014729,2]
[330586917,1719595786246,523.56066402,0.00014999,2]
[330587082,1719595838788,-300.0,0.00015064,2]
[330587083,1719595838799,-6312.10992134,0.00015065,2]
[330587084,1719595838811,-433.23403452,0.00015065,2]
[330587104,1719595839189,-18154.65604414,0.00015065,2]
[330587106,1719595839201,-3206.60424815,0.00015273,2]
[330587108,1719595839359,-490.28883306,0.000156,2]
[330587109,1719595839370,-186.23483513,0.00016154,2]
[330587110,1719595839380,-1000.0,0.00016253,2]
[330587111,1719595839390,-42201.76063344,0.00016254,2]
[330587112,1719595839400,-151.0,0.00016254,2]
[330587113,1719595839411,-151.0,0.00016254,2]
[330587114,1719595839421,-151.0,0.00016254,2]
[330587115,1719595839430,-151.0,0.00016254,2]
[330587116,1719595839440,-269.042271,0.00016254,2]
[330587117,1719595839450,-151.0,0.00016254,2]
[330587118,1719595839462,-151.0,0.00016254,2]
[330587119,1719595839473,-151.0,0.00016254,2]
[330587120,1719595839483,-151.0,0.00016254,2]
[330587121,1719595839494,-151.0,0.00016254,2]
[330587122,1719595839504,-151.0,0.00016254,2]
[330587123,1719595839513,-151.0,0.00016254,2]
[330587124,1719595839524,-151.0,0.00016254,2]
[330587125,1719595839534,-164.931718,0.00016254,2]
[330587126,1719595839544,-151.0,0.00016254,2]
[330587127,1719595839554,-151.0,0.00016254,2]
[330587128,1719595839563,-151.0,0.00016254,2]
[330587129,1719595839573,-151.0,0.00016254,2]
[330587130,1719595839583,-151.0,0.00016254,2]
[330587131,1719595839593,-180.379028,0.00016254,2]
[330587132,1719595839603,-160.249463,0.00016254,2]
[330587133,1719595839613,-160.249463,0.00016254,2]
[330587134,1719595839622,-160.249463,0.00016254,2]
[330587135,1719595839632,-160.249463,0.00016254,2]
[330587136,1719595839642,-151.0,0.00016254,2]
[330587137,1719595839652,-151.0,0.00016254,2]
[330587138,1719595839662,-151.0,0.00016254,2]
[330587139,1719595839673,-151.0,0.00016254,2]
[330587140,1719595839684,-160.249463,0.00016254,2]
[330587141,1719595839695,-160.249463,0.00016254,2]
[330587142,1719595839706,-151.0,0.00016254,2]
[330587143,1719595839719,-151.0,0.00016254,2]
[330587144,1719595839729,-151.0,0.00016254,2]
[330587145,1719595839741,-151.0,0.00016254,2]
[330587147,1719595839752,-160.249463,0.00016254,2]
[330587148,1719595839763,-160.249463,0.00016254,2]
[330587150,1719595839774,-151.0,0.00016254,2]
[330587152,1719595839785,-151.0,0.00016254,2]
[330587154,1719595839795,-151.0,0.00016254,2]
[330587156,1719595839805,-155.282739,0.00016254,2]
[330587158,1719595839816,-155.282739,0.00016254,2]
[330587160,1719595839826,-155.282739,0.00016254,2]
[330587162,1719595839836,-155.282739,0.00016254,2]
[330587164,1719595839851,-155.282739,0.00016254,2]
[330587167,1719595839861,-155.282739,0.00016254,2]
[330587169,1719595839871,-155.282739,0.00016254,2]
[330587170,1719595839883,-155.282739,0.00016254,2]
[330587172,1719595839894,-354.518831,0.00016254,2]
[330587174,1719595839905,-354.518831,0.00016254,2]
[330587176,1719595839915,-354.518831,0.00016254,2]
[330587178,1719595839927,-354.518831,0.00016254,2]
[330587180,1719595839938,-332.725208,0.00016254,2]
[330587182,1719595839948,-332.725208,0.00016254,2]
[330587184,1719595839958,-332.725208,0.00016254,2]
[330587186,1719595839970,-332.725208,0.00016254,2]
[330587188,1719595839981,-354.518831,0.00016254,2]
[330587190,1719595839991,-354.518831,0.00016254,2]
[330587192,1719595840002,-354.518831,0.00016254,2]
[330587194,1719595840012,-354.518831,0.00016254,2]
[330587196,1719595840023,-332.725208,0.00016254,2]
[330587198,1719595840033,-332.725208,0.00016254,2]
[330587200,1719595840043,-332.725208,0.00016254,2]
[330587202,1719595840053,-332.725208,0.00016254,2]
[330587204,1719595840063,-203.708382,0.00016254,2]
[330587206,1719595840074,-203.708382,0.00016254,2]
[330587207,1719595840085,-203.708382,0.00016254,2]
[330587209,1719595840095,-203.708382,0.00016254,2]
[330587211,1719595840105,-203.708382,0.00016254,2]
[330587213,1719595840115,-203.708382,0.00016254,2]
[330587215,1719595840125,-203.708382,0.00016254,2]
[330587217,1719595840135,-203.708382,0.00016254,2]
[330587219,1719595840145,-151.0,0.00016254,2]
[330587221,1719595840155,-151.0,0.00016254,2]
[330587223,1719595840165,-155.372555,0.00016254,2]
[330587225,1719595840175,-151.0,0.00016254,2]
[330587227,1719595840186,-151.0,0.00016254,2]
[330587229,1719595840196,-151.0,0.00016254,2]
[330587231,1719595840206,-151.0,0.00016254,2]
[330587233,1719595840218,-219.279767,0.00016254,2]
[330587235,1719595840228,-151.0,0.00016254,2]
[330587237,1719595840239,-151.0,0.00016254,2]
[330587239,1719595840249,-151.0,0.00016254,2]
[330587241,1719595840259,-151.0,0.00016254,2]
[330587243,1719595840270,-151.0,0.00016254,2]
[330587245,1719595840280,-151.0,0.00016254,2]
[330587247,1719595840291,-151.0,0.00016254,2]
[330587249,1719595840301,-151.0,0.00016254,2]
[330587251,1719595840312,-151.0,0.00016254,2]
[330587253,1719595840323,-151.0,0.00016254,2]
[330587255,1719595840333,-151.0,0.00016254,2]
[330587257,1719595840345,-151.0,0.00016254,2]
[330587259,1719595840356,-151.0,0.00016254,2]
[330587262,1719595840366,-151.0,0.00016254,2]
[330587264,1719595840378,-151.0,0.00016254,2]
[330587266,1719595840398,-151.0,0.00016254,2]
[330587268,1719595840413,-151.0,0.00016254,2]
[330587270,1719595840424,-209.426618,0.00016254,2]
[330587272,1719595840434,-26069.57075142,0.00016255,2]
[330587274,1719595840445,-17231.68409106,0.00016255,2]
[330587276,1719595840456,-151.0,0.00016255,2]
[330587278,1719595840469,-151.0,0.00016255,2]
[330587280,1719595840479,-151.0,0.00016255,2]
[330587282,1719595840489,-151.0,0.00016255,2]
[330587284,1719595840504,-153.40652,0.00016255,2]
[330587286,1719595840514,-151.0,0.00016255,2]
[330587288,1719595840524,-151.0,0.00016255,2]
[330587290,1719595840534,-151.0,0.00016255,2]
[330587292,1719595840544,-279.162872,0.00016255,2]
[330587294,1719595840554,-151.0,0.00016255,2]
[330587296,1719595840564,-151.0,0.00016255,2]
[330587298,1719595840574,-154.706229,0.00016255,2]
[330587300,1719595840584,-151.0,0.00016255,2]
[330587302,1719595840594,-151.0,0.00016255,2]
[330587303,1719595840604,-151.0,0.00016255,2]
[330587305,1719595840615,-151.0,0.00016255,2]
[330587308,1719595840626,-151.0,0.00016255,2]
[330587309,1719595840636,-160.652876,0.00016255,2]
[330587311,1719595840646,-160.249463,0.00016255,2]
[330587313,1719595840656,-160.249463,0.00016255,2]
[330587315,1719595840666,-160.249463,0.00016255,2]
[330587317,1719595840675,-160.249463,0.00016255,2]
[330587319,1719595840686,-160.249463,0.00016255,2]
[330587321,1719595840696,-160.249463,0.00016255,2]
[330587323,1719595840706,-151.0,0.00016255,2]
[330587325,1719595840720,-151.0,0.00016255,2]
[330587327,1719595840730,-151.0,0.00016255,2]
[330587329,1719595840743,-151.0,0.00016255,2]
[330587331,1719595840753,-151.0,0.00016255,2]
[330587333,1719595840765,-151.0,0.00016255,2]
[330587335,1719595840775,-151.0,0.00016255,2]
[330587337,1719595840785,-151.0,0.00016255,2]
[330587339,1719595840796,-151.0,0.00016255,2]
[330587341,1719595840807,-251.777512,0.00016255,2]
[330587343,1719595840816,-160.249463,0.00016255,2]
[330587345,1719595840827,-160.249463,0.00016255,2]
[330587347,1719595840837,-160.249463,0.00016255,2]
[330587349,1719595840852,-160.249463,0.00016255,2]
[330587351,1719595840863,-160.249463,0.00016255,2]
[330587353,1719595840873,-160.249471,0.00016255,2]
[330587355,1719595840883,-127.98255374,0.00016255,2]
[330587383,1719595841170,-27.30018526,0.00016255,2]
[330587385,1719595841179,-155.282739,0.00016255,2]
[330587387,1719595841189,-67.41009974,0.00016255,2]
[330587389,1719595841202,-87.87263926,0.00016255,2]
[330587391,1719595841213,-155.282739,0.00016255,2]
[330587393,1719595841223,-155.282739,0.00016255,2]
[330587395,1719595841233,-155.282739,0.00016255,2]
[330587397,1719595841243,-155.282739,0.00016255,2]
[330587399,1719595841253,-155.282739,0.00016255,2]
[330587401,1719595841263,-155.282739,0.00016255,2]
[330587403,1719595841273,-155.282739,0.00016255,2]
[330587405,1719595841283,-155.282739,0.00016255,2]
[330587407,1719595841292,-155.282731,0.00016255,2]
[330587409,1719595841302,-354.518831,0.00016255,2]
[330587411,1719595841312,-354.518831,0.00016255,2]
[330587413,1719595841322,-354.518831,0.00016255,2]
[330587415,1719595841332,-354.518831,0.00016255,2]
[330587417,1719595841342,-354.518831,0.00016255,2]
[330587419,1719595841351,-354.518831,0.00016255,2]
[330587421,1719595841361,-332.725208,0.00016255,2]
[330587423,1719595841370,-332.725208,0.00016255,2]
[330587425,1719595841380,-332.725208,0.00016255,2]
[330587427,1719595841390,-354.518831,0.00016255,2]
[330587429,1719595841399,-332.725208,0.00016255,2]
[330587430,1719595841408,-354.518831,0.00016255,2]
[330587432,1719595841418,-354.518831,0.00016255,2]
[330587434,1719595841427,-52.81240674,0.00016255,2]
[330587587,1719595843832,-279.91280126,0.00016255,2]
[330587589,1719595843844,-332.725208,0.00016255,2]
[330587591,1719595843855,-354.518831,0.00016255,2]
[330587593,1719595843865,-354.518831,0.00016255,2]
[330587595,1719595843874,-354.518827,0.00016255,2]
[330587597,1719595843885,-332.725208,0.00016255,2]
[330587599,1719595843894,-332.725208,0.00016255,2]
[330587601,1719595843904,-332.725208,0.00016255,2]
[330587603,1719595843914,-332.725208,0.00016255,2]
[330587605,1719595843925,-332.725208,0.00016255,2]
[330587607,1719595843936,-332.7252,0.00016255,2]
[330587609,1719595843945,-203.708382,0.00016255,2]
[330587611,1719595843964,-203.708382,0.00016255,2]
[330587613,1719595843977,-203.708382,0.00016255,2]
[330587615,1719595843987,-203.708382,0.00016255,2]
[330587617,1719595843996,-203.708382,0.00016255,2]
[330587619,1719595844006,-203.708382,0.00016255,2]
[330587621,1719595844016,-203.708382,0.00016255,2]
[330587623,1719595844025,-203.708382,0.00016255,2]
[330587626,1719595844035,-203.708382,0.00016255,2]
[330587627,1719595844044,-203.708382,0.00016255,2]
[330587630,1719595844054,-203.708382,0.00016255,2]
[330587632,1719595844063,-203.708382,0.00016255,2]
[330587633,1719595844073,-420.0,0.00016571,2]
[330587636,1719595844082,-1000.0,0.00018,2]
[330587637,1719595844091,-205.6831939,0.00018082,2]
[330587639,1719595844101,-309.67484142,0.0001818,2]
[330587641,1719595844110,-587.0,0.00018228,2]
[330587643,1719595844119,-772.0,0.00018516,2]
[330587646,1719595844129,-150.0,0.00018516,2]
[330587648,1719595844138,-826.34177254,0.00018798,2]
[330587650,1719595844148,-190.79546937,0.00018798,2]
[330587651,1719595844157,-154.85288975,0.00018798,2]
[330587654,1719595844166,-43904.63294862,0.000188,7]
[330587658,1719595844177,-1787.54585602,0.000188,7]
[330587878,1719595847372,-991.7178116,0.000188,7]
[330587879,1719595847384,-609.7,0.000188,7]
[330587880,1719595847395,-50057.65662432,0.000188,7]
[330587881,1719595847405,-2000.0,0.000188,2]
[330587882,1719595847414,-88888.0,0.000188,2]
[330587883,1719595847424,-1263.10841094,0.000189,2]
[330587884,1719595847433,-329527.99405,0.000189,2]
[330587885,1719595847442,-586.499451,0.00018904,2]
[330587886,1719595847452,-586.499451,0.00018904,2]
[330587887,1719595847461,-586.499451,0.00018904,2]
[330587888,1719595847472,-586.499451,0.00018904,2]
[330587889,1719595847481,-586.499451,0.00018904,2]
[330587890,1719595847491,-586.499451,0.00018904,2]
[330587891,1719595847501,-586.499451,0.00018904,2]
[330587892,1719595847510,-586.499451,0.00018904,2]
[330587893,1719595847520,-586.499451,0.00018904,2]
[330587894,1719595847529,-586.499451,0.00018904,2]
[330587895,1719595847539,-586.499451,0.00018904,2]
[330587896,1719595847548,-586.499451,0.00018904,2]
[330587897,1719595847558,-586.499451,0.00018904,2]
[330587898,1719595847566,-586.499451,0.00018904,2]
[330587899,1719595847576,-586.499451,0.00018904,2]
[330587900,1719595847585,-586.499451,0.00018904,2]
[330587901,1719595847595,-586.499451,0.00018904,2]
[330587902,1719595847604,-586.499451,0.00018904,2]
[330587903,1719595847613,-586.499451,0.00018904,2]
[330587904,1719595847623,-586.499446,0.00018904,2]
[330587905,1719595847632,-1000.0,0.00019,3]
[330587906,1719595847642,-197.0122384,0.00019,2]
[330587907,1719595847651,-250.0,0.00019041,2]
[330587908,1719595847660,-82381.9985125,0.00019168,2]
[330587909,1719595847669,-948.74695125,0.00019178,2]
[330587911,1719595847679,-948.74695125,0.00019178,2]
[330587913,1719595847688,-948.74695125,0.00019178,2]
[330587923,1719595847817,-948.74695125,0.00019178,2]
[330587924,1719595847828,-948.74695125,0.00019178,2]
[330587925,1719595847839,-948.74695125,0.00019178,2]
[330587926,1719595847855,-948.74695125,0.00019178,2]
[330587927,1719595847864,-948.74695125,0.00019178,2]
[330587928,1719595847874,-948.74695125,0.00019178,2]
[330587929,1719595847884,-948.74695125,0.00019178,2]
[330587930,1719595847894,-948.74695125,0.00019178,2]
[330587931,1719595847903,-948.74695125,0.00019178,2]
[330587932,1719595847912,-948.74695125,0.00019178,2]
[330587933,1719595847923,-948.74695125,0.00019178,2]
[330587934,1719595847933,-948.74695125,0.00019178,2]
[330587935,1719595847943,-948.74695125,0.00019178,2]
[330587936,1719595847952,-948.74695125,0.00019178,2]
[330587937,1719595847962,-926.85279083,0.00019178,2]
[330587938,1719595847975,-926.85279083,0.00019178,2]
[330587939,1719595847983,-926.85279083,0.00019178,2]
[330587940,1719595847993,-926.85279083,0.00019178,2]
[330587941,1719595848002,-926.85279083,0.00019178,2]
[330587942,1719595848011,-926.85279083,0.00019178,2]
[330587943,1719595848021,-926.85279083,0.00019178,2]
[330587944,1719595848032,-926.85279083,0.00019178,2]
[330587945,1719595848041,-926.85279083,0.00019178,2]
[330587946,1719595848050,-926.85279083,0.00019178,2]
[330587947,1719595848060,-926.85279083,0.00019178,2]
[330587948,1719595848069,-926.85279083,0.00019178,2]
[330587949,1719595848079,-926.85279081,0.00019178,2]
[330587950,1719595848089,-402.21480513,0.00019178,2]
[330587951,1719595848098,-500.0,0.00019178,2]
[330587952,1719595848107,-181.76261428,0.00019178,2]
[330587953,1719595848116,-500.0,0.00019178,2]
[330587954,1719595848126,-648.76624452,0.00019178,2]
[330587955,1719595848135,-500.0,0.00019178,2]
[330587956,1719595848144,-500.0,0.00019178,2]
[330587957,1719595848154,-500.0,0.00019178,2]
[330587958,1719595848163,-500.0,0.00019178,2]
[330587959,1719595848173,-500.0,0.00019178,2]
[330587960,1719595848184,-500.0,0.00019178,2]
[330587961,1719595848195,-500.0,0.00019178,2]
[330587962,1719595848204,-500.0,0.00019178,2]
[330587963,1719595848214,-500.0,0.00019178,2]
[330587964,1719595848225,-500.0,0.00019178,2]
[330587965,1719595848234,-500.0,0.00019178,2]
[330587966,1719595848243,-340.27636313,0.00019178,2]
[330587967,1719595848254,-500.0,0.00019178,2]
[330587968,1719595848264,-510.7165939,0.00019178,2]
[330587969,1719595848273,-500.0,0.00019178,2]
[330587970,1719595848282,-382.36881201,0.00019178,2]
[330587971,1719595848292,-500.0,0.00019178,2]
[330587972,1719595848301,-500.0,0.00019178,2]
[330587973,1719595848310,-500.0,0.00019178,2]
[330587974,1719595848319,-500.0,0.00019178,2]
[330587975,1719595848328,-500.0,0.00019178,2]
[330587976,1719595848337,-500.0,0.00019178,2]
[330587977,1719595848346,-500.0,0.00019178,2]
[330587978,1719595848356,-500.0,0.00019178,2]
[330587979,1719595848366,-500.0,0.00019178,2]
[330587980,1719595848376,-500.0,0.00019178,2]
[330587981,1719595848386,-500.0,0.00019178,2]
[330587982,1719595848396,-500.0,0.00019178,2]
[330587983,1719595848405,-500.0,0.00019178,2]
[330587984,1719595848414,-500.0,0.00019178,2]
[330587985,1719595848423,-500.0,0.00019178,2]
[330587986,1719595848432,-500.0,0.00019178,2]
[330587987,1719595848442,-500.0,0.00019178,2]
[330587988,1719595848451,-500.0,0.00019178,2]
[330587989,1719595848460,-500.0,0.00019178,2]
[330587990,1719595848469,-500.0,0.00019178,2]
[330587991,1719595848480,-500.0,0.00019178,2]
[330587992,1719595848489,-500.0,0.00019178,2]
[330587993,1719595848499,-500.0,0.00019178,2]
[330587994,1719595848508,-500.0,0.00019178,2]
[330587995,1719595848518,-500.0,0.00019178,2]
[330587996,1719595848527,-500.0,0.00019178,2]
[330587997,1719595848536,-500.0,0.00019178,2]
[330587998,1719595848545,-500.0,0.00019178,2]